[Event "RUS-ch U21 2019"]
[Site "Loo"]
[Date "2019.04.22"]
[Round "3.4"]
[White "Galaktionov, Artem"]
[Black "Triapishko, Alexandr"]
[Result "0-1"]
[ECO "D38"]
[WhiteElo "2332"]
[BlackElo "2506"]
[Annotator "RC"]
[PlyCount "116"]
[EventDate "2019.04.20"]
[EventType "tourn"]
[EventCountry "RUS"]
[SourceTitle "playchess.com"]
[Source "ChessBase"]
[SourceQuality "1"]
[TimeControl "40/5400+30:1800+30"]

1. d4 {[%emt 0:00:00]} Nf6 {[%emt 0:00:00]} 2. Nf3 {[%emt 0:00:00]} e6 {[%emt 0:05:20]} 3. c4 {[%emt 0:00:00]} d5 {[%emt 0:01:15]} 4. Nc3 {[%emt 0:00:00]} Bb4 {[%emt 0:00:34]} 5. cxd5 {[%emt 0:00:00]} exd5 {[%emt 0:01:27]} 6. Bg5 {[%emt 0:00:08]} Bf5 {[%emt 0:17:35]} 7. Qa4+ {[%emt 0:07:25]} Nc6 {[%emt 0:01:34]} 8. Ne5 {[%emt 0:00:04]} Qd6 {[%emt 0:25:33]} 9. Bf4 {[%emt 0:21:16]} O-O {[%emt 0:20:21]} 10. e3 {[%emt 0:31:02]} Nxe5 {[%emt 0:04:49]} 11. Bxe5 {[%emt 0:00:53]} Qb6 {[%emt 0:00:53]} 12. Qb3 {[%emt 0:01:07]} Ne4 {[%emt 0:08:04]} 13. Bd3 {[%emt 0:00:56]} Nxc3 {[%emt 0:03:02]} 14. bxc3 {[%emt 0:01:56]} Bxd3 {[%emt 0:00:03]} 15. Qxb4 {[%emt 0:01:50]} Qg6 {[%emt 0:00:06]} 16. Rg1 {[%emt 0:01:41]} a5 {[%emt 0:02:14]} 17. Qb2 {[%emt 0:01:23]} a4 {[%emt 0:01:31]} 18. a3 {[%emt 0:01:17]} Ra5 {[%emt 0:01:15]} 19. f3 {[%emt 0:01:57]} Rb5 {[%emt 0:00:10]} 20. Qd2 {[%emt 0:00:06]} c6 {[%emt 0:02:35]} 21. Kf2 {[%emt 0:00:26]} Bc4 {[%emt 0:00:30]} 22. g4 {[%emt 0:01:38]} Qd3 {[%emt 0:00:34]} 23. Qxd3 {[%emt 0:04:38]} Rb2+ {[%emt 0:00:22]} 24. Kg3 {[%emt 0:00:03]} Bxd3 {[%emt 0:00:03]} 25. Rgd1 {[%emt 0:00:13]} Bc4 {[%emt 0:00:45]} 26. Bf4 {[%emt 0:05:21]} Rb3 {[%emt 0:00:29]} 27. Rdc1 {[%emt 0:00:04]} Re8 {[%emt 0:01:02]} 28. h4 {[%emt 0:00:08]} f6 {[%emt 0:01:09]} 29. Kf2 {[%emt 0:03:31]} Kf7 {[%emt 0:00:15]} 30. Rcb1 {[%emt 0:00:10]} h6 {[%emt 0:00:51]} 31. h5 {[%emt 0:00:17]} Bd3 {[%emt 0:00:23]} 32. Rc1 {[%emt 0:00:04]} b6 {[%emt 0:00:37]} 33. Ra2 {[%emt 0:00:28]} c5 {[%emt 0:00:31]} 34. Ke1 {[%emt 0:05:53]} cxd4 {[%emt 0:00:25]} 35. cxd4 {[%emt 0:00:02]} Bc4 {[%emt 0:00:07]} 36. Kf2 {[%emt 0:00:20]} b5 {[%emt 0:00:22]} 37. Raa1 {[%emt 0:00:04]} Re6 {[%emt 0:00:44]} 38. Re1 {[%emt 0:00:39]} b4 {[%emt 0:00:53]} 39. e4 {[%emt 0:06:41]} bxa3 {[%emt 0:00:33]} 40. Bc1 {[%emt 0:00:00]} a2 {[%emt 0:00:00]} 41. Rxa2 {[%emt 0:02:10]} Rxf3+ {[%emt 0:11:12]} 42. Kxf3 {[%emt 0:00:23]} Bxa2 {[%emt 0:00:35]} 43. e5 {[%emt 0:10:22]} Rb6 {[%emt 0:17:07]} 44. Re3 {[%emt 0:05:19]} fxe5 {[%emt 0:01:58]} 45. Rxe5 {[%emt 0:00:55]} Bc4 {[%emt 0:00:51]} 46. Ba3 {[%emt 0:01:13]} Rb3+ {[%emt 0:01:07]} 47. Re3 {[%emt 0:00:01]} Bd3 {[%emt 0:00:13]} 48. Bd6 {[%emt 0:01:39]} a3 {[%emt 0:00:39]} 49. Re7+ {[%emt 0:00:27]} Kg8 {[%emt 0:01:12]} 50. Ra7 {[%emt 0:00:55]} a2 {[%emt 0:00:11]} 51. Kf4 {[%emt 0:02:33]} Rb6 {[%emt 0:00:08]} 52. Rxa2 {[%emt 0:02:37]} Rxd6 {[%emt 0:00:04]} 53. g5 {[%emt 0:01:23]} hxg5+ {[%emt 0:00:13]} 54. Kxg5 {[%emt 0:00:02]} Rf6 {[%emt 0:00:15]} 55. Ra8+ {[%emt 0:00:05]} Kh7 {[%emt 0:00:09]} 56. Ra7 {[%emt 0:00:01]} Rf5+ {[%emt 0:00:29]} 57. Kg4 {[%emt 0:00:08]} Kh6 {[%emt 0:00:36]} 58. Ra8 {[%emt 0:00:11]} Rg5+ {[%emt 0:00:12]} 0-1

[Event "RUS-ch U21 2019"]
[Site "Loo"]
[Date "2019.04.22"]
[Round "3.5"]
[White "Khanin, Semen"]
[Black "Yeletsky, Ivan"]
[Result "1-0"]
[ECO "B90"]
[WhiteElo "2524"]
[BlackElo "2409"]
[Annotator "ChessBase"]
[PlyCount "133"]
[EventDate "2019.04.20"]
[EventType "tourn"]
[EventCountry "RUS"]
[SourceTitle "playchess.com"]
[Source "ChessBase"]
[SourceQuality "1"]
[TimeControl "40/5400+30:1800+30"]

1. e4 {[%emt 0:00:00]} c5 {[%emt 0:00:00]} 2. Nf3 {[%emt 0:00:00]} d6 {[%emt 0:00:00]} 3. d4 {[%emt 0:00:00]} cxd4 {[%emt 0:00:00]} 4. Nxd4 {[%emt 0:00:00]} Nf6 {[%emt 0:00:04]} 5. Nc3 {[%emt 0:00:00]} a6 {[%emt 0:00:09]} 6. f3 {[%emt 0:00:00]} e5 {[%emt 0:00:09]} 7. Nb3 {[%emt 0:00:00]} Be6 {[%emt 0:00:06]} 8. Be3 {[%emt 0:00:08]} Be7 {[%emt 0:00:09]} 9. Qd2 {[%emt 0:00:15]} O-O {[%emt 0:00:11]} 10. O-O-O {[%emt 0:00:12]} Nbd7 {[%emt 0:00:10]} 11. g4 {[%emt 0:00:06]} b5 {[%emt 0:00:06]} 12. g5 {[%emt 0:00:05]} Nh5 {[%emt 0:00:07]} 13. Kb1 {[%emt 0:00:06]} Nb6 {[%emt 0:00:55]} 14. Na5 {[%emt 0:00:05]} Rc8 {[%emt 0:00:07]} 15. Nd5 {[%emt 0:00:15]} Nxd5 {[%emt 0:00:37]} 16. exd5 {[%emt 0:00:06]} Bxd5 {[%emt 0:00:38]} 17. Qxd5 {[%emt 0:00:04]} Qxa5 {[%emt 0:00:09]} 18. c4 {[%emt 0:00:10]} Nf4 {[%emt 0:07:56]} 19. Bxf4 {[%emt 0:00:09]} exf4 {[%emt 0:00:08]} 20. h4 {[%emt 0:00:06]} Qc7 {[%emt 0:19:27]} 21. Rc1 {[%emt 0:29:25]} Qa7 {[%emt 0:11:59]} 22. Bd3 {[%emt 0:09:24]} bxc4 {[%emt 0:06:59]} 23. Rxc4 {[%emt 0:00:41]} Rxc4 {[%emt 0:15:17]} 24. Bxc4 {[%emt 0:00:18]} Qa8 {[%emt 0:01:10]} 25. Qd3 {[%emt 0:14:36]} a5 {[%emt 0:03:14]} 26. g6 {[%emt 0:05:32]} hxg6 {[%emt 0:21:29]} 27. h5 {[%emt 0:01:02]} d5 {[%emt 0:00:11]} 28. Bxd5 {[%emt 0:01:01]} Rd8 {[%emt 0:00:12]} 29. Rd1 {[%emt 0:04:41]} Qxd5 {[%emt 0:00:31]} 30. Qxd5 {[%emt 0:00:05]} Rxd5 {[%emt 0:00:05]} 31. Rxd5 {[%emt 0:00:03]} gxh5 {[%emt 0:00:07]} 32. Rxh5 {[%emt 0:02:08]} g5 {[%emt 0:00:11]} 33. Kc2 {[%emt 0:00:23]} Kg7 {[%emt 0:02:04]} 34. Kd3 {[%emt 0:00:53]} f5 {[%emt 0:02:16]} 35. Ke2 {[%emt 0:02:10]} Bf6 {[%emt 0:02:59]} 36. b3 {[%emt 0:00:10]} Kg6 {[%emt 0:00:09]} 37. Rh1 {[%emt 0:00:04]} g4 {[%emt 0:01:30]} 38. Rd1 {[%emt 0:01:09]} Be7 {[%emt 0:01:09]} 39. Rd4 {[%emt 0:08:47]} Kg5 {[%emt 0:00:09]} 40. Rd5 {[%emt 0:00:00]} Bb4 {[%emt 0:00:00]} 41. a3 {[%emt 0:04:00]} Bxa3 {[%emt 0:00:35]} 42. Rxa5 {[%emt 0:00:07]} Bd6 {[%emt 0:01:40]} 43. Ra6 {[%emt 0:00:51]} Be7 {[%emt 0:01:14]} 44. Kf2 {[%emt 0:00:18]} Bf8 {[%emt 0:00:49]} 45. Kg2 {[%emt 0:00:06]} Bc5 {[%emt 0:01:23]} 46. Rc6 {[%emt 0:09:58]} Be7 {[%emt 0:04:24]} 47. Rc4 {[%emt 0:05:01]} Bd6 {[%emt 0:00:44]} 48. b4 {[%emt 0:06:53]} Kf6 {[%emt 0:00:08]} 49. b5 {[%emt 0:00:10]} Ke6 {[%emt 0:00:09]} 50. b6 {[%emt 0:00:12]} Kd7 {[%emt 0:00:09]} 51. Rc2 {[%emt 0:03:32]} Be5 {[%emt 0:03:37]} 52. b7 {[%emt 0:06:42]} Bc7 {[%emt 0:00:06]} 53. Rc4 {[%emt 0:00:04]} Kd6 {[%emt 0:07:15]} 54. fxg4 {[%emt 0:03:55]} fxg4 {[%emt 0:00:14]} 55. Rxf4 {[%emt 0:00:03]} Kc6 {[%emt 0:00:14]} 56. Rb4 {[%emt 0:00:05]} Bb8 {[%emt 0:00:05]} 57. Rb1 {[%emt 0:00:11]} Kc5 {[%emt 0:00:49]} 58. Rb2 {[%emt 0:00:04]} Kc6 {[%emt 0:00:19]} 59. Rb4 {[%emt 0:00:05]} g3 {[%emt 0:01:00]} 60. Rb3 {[%emt 0:00:04]} Kc5 {[%emt 0:03:47]} 61. Rxg3 {[%emt 0:00:15]} Kc6 {[%emt 0:01:17]} 62. Rb3 {[%emt 0:00:08]} Kc7 {[%emt 0:00:14]} 63. Kf3 {[%emt 0:00:08]} Kc6 {[%emt 0:00:29]} 64. Ke4 {[%emt 0:00:05]} Kc7 {[%emt 0:01:30]} 65. Kd5 {[%emt 0:00:03]} Kd7 {[%emt 0:00:48]} 66. Rc3 {[%emt 0:00:15]} Bc7 {[%emt 0:00:30]} 67. Rc2 {[%emt 0:00:04]} 1-0

[Event "RUS-ch U21 2019"]
[Site "Loo"]
[Date "2019.04.23"]
[Round "4.2"]
[White "Triapishko, Alexandr"]
[Black "Khanin, Semen"]
[Result "1/2-1/2"]
[ECO "A05"]
[WhiteElo "2506"]
[BlackElo "2524"]
[Annotator "RC"]
[PlyCount "83"]
[EventDate "2019.04.20"]
[EventType "tourn"]
[EventCountry "RUS"]
[SourceTitle "playchess.com"]
[Source "ChessBase"]
[SourceQuality "1"]
[TimeControl "40/5400+30:1800+30"]

1. Nf3 {[%emt 0:00:41]} Nf6 {[%emt 0:00:00]} 2. g3 {[%emt 0:01:02]} g6 {[%emt 0:00:00]} 3. b3 {[%emt 0:04:35]} Bg7 {[%emt 0:00:00]} 4. Bb2 {[%emt 0:00:08]} d6 {[%emt 0:00:00]} 5. d4 {[%emt 0:00:35]} b5 {[%emt 0:00:00]} 6. Bg2 {[%emt 0:02:16]} Bb7 {[%emt 0:00:00]} 7. O-O {[%emt 0:01:54]} O-O {[%emt 0:00:03]} 8. Qd3 {[%emt 0:18:09]} a6 {[%emt 0:00:16]} 9. c4 {[%emt 0:09:30]} bxc4 {[%emt 0:00:22]} 10. bxc4 {[%emt 0:01:38]} Nbd7 {[%emt 0:00:52]} 11. Nbd2 {[%emt 0:07:29]} Rb8 {[%emt 0:03:45]} 12. Rab1 {[%emt 0:20:32]} Re8 {[%emt 0:23:49]} 13. Bc3 {[%emt 0:06:59]} Qc8 {[%emt 0:05:45]} 14. Bh3 {[%emt 0:07:26]} Qd8 15. e4 e5 {[%emt 0:05:48]} 16. d5 {[%emt 0:01:29]} Nc5 {[%emt 0:01:58]} 17. Qe3 {[%emt 0:02:23]} c6 {[%emt 0:13:29]} 18. Bb4 {[%emt 0:00:10]} cxd5 {[%emt 0:03:02]} 19. cxd5 {[%emt 0:00:52]} Bc8 {[%emt 0:05:13]} 20. Bxc8 {[%emt 0:01:07]} Rxc8 {[%emt 0:01:25]} 21. Rfc1 {[%emt 0:01:02]} Nfd7 {[%emt 0:01:30]} 22. Nc4 {[%emt 0:01:26]} Qe7 {[%emt 0:00:07]} 23. Nfd2 {[%emt 0:01:55]} Qf8 {[%emt 0:01:37]} 24. Rc2 {[%emt 0:02:15]} Bh6 {[%emt 0:00:21]} 25. Qe2 {[%emt 0:00:31]} f5 {[%emt 0:02:15]} 26. f3 {[%emt 0:01:03]} Rb8 {[%emt 0:02:18]} 27. Rcb2 {[%emt 0:01:21]} Qf6 {[%emt 0:04:54]} 28. Bxc5 {[%emt 0:03:13]} Rxb2 {[%emt 0:00:06]} 29. Rxb2 {[%emt 0:00:02]} Nxc5 {[%emt 0:00:09]} 30. Rb6 {[%emt 0:00:14]} Bxd2 {[%emt 0:03:05]} 31. Rxd6 {[%emt 0:01:03]} Qf8 {[%emt 0:00:55]} 32. Qxd2 {[%emt 0:00:06]} fxe4 {[%emt 0:00:16]} 33. Qe3 {[%emt 0:02:47]} exf3 {[%emt 0:13:12]} 34. Qxc5 {[%emt 0:00:35]} Rc8 {[%emt 0:00:04]} 35. Qb6 {[%emt 0:00:15]} Rxc4 {[%emt 0:00:41]} 36. Rf6 {[%emt 0:00:44]} Qa3 {[%emt 0:05:10]} 37. Qe6+ {[%emt 0:00:26]} Kg7 {[%emt 0:00:06]} 38. Qf7+ {[%emt 0:00:27]} Kh6 {[%emt 0:00:29]} 39. Rxf3 {[%emt 0:00:15]} Qc5+ {[%emt 0:02:11]} 40. Kg2 {[%emt 0:00:00]} Rd4 {[%emt 0:00:00]} 41. Kh3 {[%emt 0:23:36]} Qxd5 {[%emt 0:04:00]} 42. Qf8+ {[%emt 0:00:44]} 1/2-1/2

[Event "RUS-ch U21 2019"]
[Site "Loo"]
[Date "2019.04.23"]
[Round "4.4"]
[White "Pogosyan, Stefan"]
[Black "Drygalov, Sergey"]
[Result "0-1"]
[ECO "E46"]
[WhiteElo "2344"]
[BlackElo "2485"]
[Annotator "ChessBase"]
[PlyCount "104"]
[EventDate "2019.04.20"]
[EventType "tourn"]
[EventCountry "RUS"]
[SourceTitle "playchess.com"]
[Source "ChessBase"]
[SourceQuality "1"]
[TimeControl "40/5400+30:1800+30"]

1. d4 {[%emt 0:00:00]} Nf6 {[%emt 0:00:00]} 2. c4 {[%emt 0:00:00]} e6 {[%emt 0:00:00]} 3. Nc3 {[%emt 0:00:00]} Bb4 {[%emt 0:00:00]} 4. e3 {[%emt 0:00:00]} O-O {[%emt 0:01:29]} 5. Nge2 {[%emt 0:00:08]} d5 {[%emt 0:00:37]} 6. a3 {[%emt 0:00:14]} Be7 {[%emt 0:00:07]} 7. cxd5 {[%emt 0:00:20]} exd5 {[%emt 0:00:05]} 8. Nf4 {[%emt 0:00:05]} c6 {[%emt 0:00:56]} 9. Bd3 {[%emt 0:00:08]} a5 {[%emt 0:00:10]} 10. O-O {[%emt 0:00:36]} Na6 {[%emt 0:07:23]} 11. f3 {[%emt 0:01:27]} Nc7 {[%emt 0:08:50]} 12. Bc2 {[%emt 0:05:28]} c5 {[%emt 0:05:19]} 13. Bb3 {[%emt 0:06:45]} cxd4 {[%emt 0:06:27]} 14. exd4 {[%emt 0:11:53]} b6 {[%emt 0:08:37]} 15. Re1 {[%emt 0:02:46]} Bb7 {[%emt 0:00:40]} 16. Be3 {[%emt 0:03:58]} Bd6 {[%emt 0:01:18]} 17. Qd2 {[%emt 0:02:30]} b5 {[%emt 0:15:57]} 18. Nd3 {[%emt 0:01:59]} Nd7 {[%emt 0:02:34]} 19. Nc5 {[%emt 0:07:03]} Bc6 {[%emt 0:00:57]} 20. Bg5 {[%emt 0:13:40]} Qc8 {[%emt 0:00:41]} 21. Qf2 {[%emt 0:06:09]} h6 {[%emt 0:13:59]} 22. Bh4 {[%emt 0:06:08]} Rb8 {[%emt 0:04:58]} 23. Rac1 {[%emt 0:04:01]} b4 {[%emt 0:01:39]} 24. axb4 {[%emt 0:01:58]} Rxb4 {[%emt 0:00:36]} 25. Ba2 {[%emt 0:01:04]} Nxc5 {[%emt 0:02:59]} 26. dxc5 {[%emt 0:00:16]} Bf4 {[%emt 0:00:08]} 27. Rcd1 {[%emt 0:01:08]} Qb8 {[%emt 0:00:17]} 28. Re2 {[%emt 0:00:56]} Re8 {[%emt 0:01:49]} 29. Be7 {[%emt 0:03:44]} Ne6 {[%emt 0:04:50]} 30. Bd6 {[%emt 0:03:30]} Bxd6 {[%emt 0:00:07]} 31. cxd6 {[%emt 0:00:12]} d4 {[%emt 0:01:32]} 32. Bxe6 {[%emt 0:01:13]} dxc3 {[%emt 0:00:07]} 33. bxc3 {[%emt 0:00:13]} Rb1 {[%emt 0:00:08]} 34. Rxb1 {[%emt 0:03:18]} Qxb1+ {[%emt 0:00:02]} 35. Re1 {[%emt 0:00:10]} Qd3 {[%emt 0:00:13]} 36. Bb3 {[%emt 0:03:12]} Rxe1+ 37. Qxe1 Qxd6 {[%emt 0:00:46]} 38. Qd1 {[%emt 0:01:31]} Qc5+ {[%emt 0:02:58]} 39. Qd4 {[%emt 0:02:13]} Qxd4+ {[%emt 0:00:58]} 40. cxd4 {[%emt 0:00:00]} a4 {[%emt 0:00:00]} 41. Ba2 {[%emt 0:01:18]} Kf8 {[%emt 0:01:13]} 42. Kf2 {[%emt 0:00:10]} Ke7 {[%emt 0:00:42]} 43. d5 {[%emt 0:05:27]} Bb5 {[%emt 0:00:16]} 44. Ke3 {[%emt 0:00:06]} Kd6 {[%emt 0:00:03]} 45. Kd4 {[%emt 0:00:10]} Bf1 {[%emt 0:01:08]} 46. g3 {[%emt 0:00:44]} Be2 {[%emt 0:00:14]} 47. f4 {[%emt 0:00:59]} Bd1 {[%emt 0:00:26]} 48. Kc3 {[%emt 0:04:15]} Bb3 {[%emt 0:00:22]} 49. Bxb3 {[%emt 0:00:03]} axb3 {[%emt 0:00:04]} 50. Kxb3 {[%emt 0:00:03]} Kxd5 {[%emt 0:00:06]} 51. Kb4 {[%emt 0:00:04]} f5 {[%emt 0:00:59]} 52. Kb5 {[%emt 0:02:58]} Ke4 {[%emt 0:03:52]} 0-1

[Event "RUS-ch U21 2019"]
[Site "Loo"]
[Date "2019.04.27"]
[Round "8.1"]
[White "Murzin, Volodar"]
[Black "Drygalov, Andrey"]
[Result "1/2-1/2"]
[ECO "C84"]
[WhiteElo "2407"]
[BlackElo "2481"]
[Annotator "ChessBase"]
[PlyCount "73"]
[EventDate "2019.04.20"]
[EventType "tourn"]
[EventCountry "RUS"]
[SourceTitle "playchess.com"]
[Source "ChessBase"]
[SourceQuality "1"]
[TimeControl "40/5400+30:1800+30"]

1. e4 {[%emt 0:00:00]} e5 {[%emt 0:00:00]} 2. Nf3 {[%emt 0:00:00]} Nc6 {[%emt 0:00:00]} 3. Bb5 {[%emt 0:00:00]} a6 {[%emt 0:00:12]} 4. Ba4 {[%emt 0:00:00]} Nf6 {[%emt 0:00:08]} 5. O-O {[%emt 0:00:12]} Be7 {[%emt 0:00:07]} 6. d3 {[%emt 0:00:23]} b5 {[%emt 0:00:13]} 7. Bb3 {[%emt 0:00:01]} d6 {[%emt 0:01:10]} 8. a3 {[%emt 0:00:17]} O-O {[%emt 0:00:37]} 9. Nc3 {[%emt 0:00:08]} Na5 {[%emt 0:00:08]} 10. Ba2 {[%emt 0:00:16]} Be6 {[%emt 0:00:57]} 11. Nd5 {[%emt 0:02:24]} c5 {[%emt 0:07:02]} 12. Be3 {[%emt 0:08:56]} Nc6 {[%emt 0:01:51]} 13. c3 {[%emt 0:02:28]} Bxd5 {[%emt 0:13:04]} 14. Bxd5 {[%emt 0:09:09]} Nxd5 {[%emt 0:04:47]} 15. exd5 {[%emt 0:00:02]} Nb8 {[%emt 0:00:27]} 16. b4 {[%emt 0:02:08]} Nd7 {[%emt 0:00:57]} 17. bxc5 {[%emt 0:01:30]} dxc5 {[%emt 0:01:20]} 18. c4 {[%emt 0:02:25]} Rb8 {[%emt 0:03:40]} 19. Qc2 {[%emt 0:03:12]} Qb6 {[%emt 0:08:18]} 20. a4 {[%emt 0:06:33]} b4 {[%emt 0:03:55]} 21. a5 {[%emt 0:09:03]} Qg6 {[%emt 0:09:12]} 22. Nd2 {[%emt 0:01:42]} f5 {[%emt 0:02:26]} 23. f4 {[%emt 0:04:01]} Bd6 {[%emt 0:02:03]} 24. Nb3 {[%emt 0:07:45]} Rbc8 {[%emt 0:03:38]} 25. Rac1 {[%emt 0:10:54]} Nf6 {[%emt 0:13:50]} 26. fxe5 {[%emt 0:04:39]} Bxe5 {[%emt 0:00:04]} 27. Bf4 {[%emt 0:01:40]} Bxf4 {[%emt 0:05:47]} 28. Rxf4 {[%emt 0:00:05]} Qh6 {[%emt 0:00:10]} 29. Qd2 {[%emt 0:01:56]} Ng4 {[%emt 0:08:44]} 30. h3 {[%emt 0:00:30]} Ne5 {[%emt 0:00:05]} 31. Rcf1 {[%emt 0:00:42]} Qg6 {[%emt 0:00:48]} 32. Qe2 {[%emt 0:11:27]} Rfe8 {[%emt 0:00:50]} 33. Qd1 {[%emt 0:00:24]} Rf8 {[%emt 0:01:16]} 34. Qa1 {[%emt 0:04:14]} Rfe8 {[%emt 0:03:50]} 35. Qd1 {[%emt 0:02:25]} Rf8 {[%emt 0:00:25]} 36. Qa1 {[%emt 0:00:52]} Rfe8 {[%emt 0:00:05]} 37. Qd1 {[%emt 0:03:32]} 1/2-1/2

[Event "RUS-ch U21 2019"]
[Site "Loo"]
[Date "2019.04.27"]
[Round "8.3"]
[White "Gaifullin, Artur"]
[Black "Yeletsky, Ivan"]
[Result "0-1"]
[ECO "A05"]
[WhiteElo "2453"]
[BlackElo "2409"]
[Annotator "ChessBase"]
[PlyCount "112"]
[EventDate "2019.04.20"]
[EventType "tourn"]
[EventCountry "RUS"]
[SourceTitle "playchess.com"]
[Source "ChessBase"]
[SourceQuality "1"]
[TimeControl "40/5400+30:1800+30"]

1. Nf3 {[%emt 0:00:00]} Nf6 {[%emt 0:00:00]} 2. e3 {[%emt 0:00:00]} g6 {[%emt 0:00:02]} 3. b4 {[%emt 0:00:00]} d6 {[%emt 0:00:33]} 4. d4 {[%emt 0:00:01]} Bg7 {[%emt 0:00:50]} 5. Bb2 {[%emt 0:00:10]} O-O {[%emt 0:00:19]} 6. c4 {[%emt 0:00:04]} c5 {[%emt 0:02:07]} 7. dxc5 {[%emt 0:04:59]} dxc5 {[%emt 0:00:11]} 8. Qxd8 {[%emt 0:00:04]} Rxd8 {[%emt 0:00:10]} 9. b5 {[%emt 0:00:03]} Bf5 {[%emt 0:07:12]} 10. Nbd2 {[%emt 0:01:18]} Nbd7 {[%emt 0:00:53]} 11. Be2 {[%emt 0:00:16]} Ne4 {[%emt 0:01:42]} 12. Bxg7 {[%emt 0:00:11]} Kxg7 {[%emt 0:00:09]} 13. g4 {[%emt 0:03:53]} Nxd2 {[%emt 0:00:15]} 14. Nxd2 {[%emt 0:00:17]} Be6 {[%emt 0:08:37]} 15. f4 {[%emt 0:00:52]} Nf6 {[%emt 0:00:17]} 16. Rg1 {[%emt 0:01:33]} Kf8 {[%emt 0:01:50]} 17. e4 {[%emt 0:14:46]} Rd4 {[%emt 0:04:55]} 18. f5 {[%emt 0:01:52]} Rad8 {[%emt 0:13:18]} 19. fxe6 {[%emt 0:37:08]} Rxd2 {[%emt 0:00:09]} 20. Rf1 {[%emt 0:00:02]} Rb2 {[%emt 0:14:57]} 21. Rd1 {[%emt 0:02:32]} Rxd1+ {[%emt 0:01:50]} 22. Bxd1 {[%emt 0:00:02]} Ke8 {[%emt 0:08:32]} 23. e5 {[%emt 0:20:05]} Ne4 {[%emt 0:00:08]} 24. b6 {[%emt 0:04:48]} Rxa2 {[%emt 0:05:12]} 25. h4 {[%emt 0:01:31]} fxe6 {[%emt 0:05:12]} 26. bxa7 {[%emt 0:02:56]} Rxa7 {[%emt 0:06:30]} 27. Rf4 {[%emt 0:00:17]} Nc3 {[%emt 0:00:19]} 28. Bc2 {[%emt 0:00:02]} Ra2 {[%emt 0:02:06]} 29. Rf2 {[%emt 0:00:18]} Kd7 {[%emt 0:01:45]} 30. g5 {[%emt 0:00:40]} b5 {[%emt 0:05:26]} 31. cxb5 {[%emt 0:00:35]} Nxb5 {[%emt 0:00:51]} 32. Bd3 {[%emt 0:00:09]} Ra1+ {[%emt 0:00:15]} 33. Kd2 {[%emt 0:00:04]} Nd4 {[%emt 0:01:32]} 34. Rf7 {[%emt 0:00:46]} Rh1 {[%emt 0:03:07]} 35. Rxh7 {[%emt 0:00:59]} Nf3+ {[%emt 0:02:49]} 36. Ke3 {[%emt 0:01:18]} Nxe5 {[%emt 0:01:35]} 37. Bb5+ {[%emt 0:00:32]} Kd6 {[%emt 0:00:07]} 38. Rh8 {[%emt 0:00:27]} c4 {[%emt 0:00:49]} 39. Ba4 {[%emt 0:00:13]} Rh3+ {[%emt 0:00:24]} 40. Kf4 {[%emt 0:00:00]} Nd3+ {[%emt 0:00:00]} 41. Ke4 {[%emt 0:03:08]} Nc5+ {[%emt 0:01:23]} 42. Kd4 {[%emt 0:00:05]} Nxa4 {[%emt 0:00:46]} 43. Kxc4 {[%emt 0:00:50]} Ke5 {[%emt 0:00:35]} 44. Rh7 {[%emt 0:00:36]} Nb6+ {[%emt 0:00:14]} 45. Kc5 {[%emt 0:00:08]} Nd5 {[%emt 0:00:10]} 46. Kc6 {[%emt 0:00:04]} Ne3 {[%emt 0:00:35]} 47. Rh6 {[%emt 0:01:09]} Kf5 {[%emt 0:00:45]} 48. Kd7 {[%emt 0:00:03]} Nd5 {[%emt 0:00:13]} 49. Rh7 {[%emt 0:00:20]} Kg4 {[%emt 0:01:30]} 50. Kxe6 {[%emt 0:01:27]} Rxh4 {[%emt 0:00:14]} 51. Rf7 {[%emt 0:00:44]} Nf4+ {[%emt 0:00:11]} 52. Ke5 {[%emt 0:00:19]} Kxg5 {[%emt 0:00:15]} 53. Rxe7 {[%emt 0:00:02]} Rh1 {[%emt 0:00:15]} 54. Ra7 {[%emt 0:00:21]} Kg4 {[%emt 0:00:10]} 55. Rg7 {[%emt 0:00:36]} Re1+ {[%emt 0:00:35]} 56. Kd4 {[%emt 0:00:05]} Ne6+ {[%emt 0:00:09]} 0-1

[Event "RUS-ch U21 2019"]
[Site "Loo"]
[Date "2019.04.27"]
[Round "8.5"]
[White "Drygalov, Sergey"]
[Black "Galaktionov, Artem"]
[Result "1-0"]
[ECO "A04"]
[WhiteElo "2485"]
[BlackElo "2332"]
[Annotator "ChessBase"]
[PlyCount "63"]
[EventDate "2019.04.20"]
[EventType "tourn"]
[EventCountry "RUS"]
[SourceTitle "playchess.com"]
[Source "ChessBase"]
[SourceQuality "1"]
[TimeControl "40/5400+30:1800+30"]

1. Nf3 {[%emt 0:00:00]} b5 {[%emt 0:00:22]} 2. e4 {[%emt 0:02:10]} Bb7 {[%emt 0:00:04]} 3. e5 {[%emt 0:03:26]} a6 {[%emt 0:00:55]} 4. c4 {[%emt 0:00:56]} bxc4 {[%emt 0:00:08]} 5. Bxc4 {[%emt 0:00:07]} e6 {[%emt 0:00:01]} 6. d4 {[%emt 0:03:55]} d5 {[%emt 0:03:04]} 7. Bb3 {[%emt 0:09:48]} c5 {[%emt 0:01:05]} 8. O-O {[%emt 0:00:11]} Nc6 {[%emt 0:01:33]} 9. Ba4 {[%emt 0:01:31]} Qb6 {[%emt 0:02:58]} 10. Nbd2 {[%emt 0:12:20]} Qa7 {[%emt 0:24:11]} 11. Nb3 {[%emt 0:02:53]} c4 {[%emt 0:02:00]} 12. Na5 {[%emt 0:00:13]} Rc8 {[%emt 0:00:06]} 13. b3 {[%emt 0:00:27]} c3 {[%emt 0:04:42]} 14. Qd3 {[%emt 0:01:51]} Kd8 {[%emt 0:00:06]} 15. Nxb7+ {[%emt 0:00:59]} Qxb7 {[%emt 0:00:34]} 16. Bg5+ {[%emt 0:03:09]} f6 {[%emt 0:00:09]} 17. exf6 {[%emt 0:00:05]} gxf6 {[%emt 0:00:04]} 18. Bf4 {[%emt 0:00:37]} Ba3 {[%emt 0:00:13]} 19. Qxc3 {[%emt 0:00:53]} Nge7 {[%emt 0:04:14]} 20. Qe3 {[%emt 0:02:10]} Qd7 {[%emt 0:00:10]} 21. Rfe1 {[%emt 0:05:27]} Ng6 {[%emt 0:00:05]} 22. Bg3 {[%emt 0:00:30]} Re8 {[%emt 0:00:01]} 23. h4 {[%emt 0:00:29]} h5 {[%emt 0:02:28]} 24. Qd3 {[%emt 0:01:18]} Nge7 {[%emt 0:08:02]} 25. Qxa6 {[%emt 0:00:13]} Bd6 {[%emt 0:00:01]} 26. Bxd6 {[%emt 0:01:43]} Qxd6 {[%emt 0:00:05]} 27. Rac1 {[%emt 0:00:27]} Rg8 {[%emt 0:00:18]} 28. Rc3 {[%emt 0:02:10]} Qb4 {[%emt 0:09:31]} 29. Rec1 {[%emt 0:00:42]} Qa5 {[%emt 0:00:01]} 30. Qe2 {[%emt 0:01:27]} Kd7 {[%emt 0:01:17]} 31. Bxc6+ {[%emt 0:00:08]} Nxc6 {[%emt 0:00:16]} 32. Rxc6 {[%emt 0:00:10]} 1-0